Cogmind - Beta 14 @@@ ROGUE MODE // 2024.11.25 @ 10:23:58 Player: WazdakkaGutsmek Result: Destroyed by 2T-0PJ(R) with Subdweller Shrapnel Launcher Performance ------------- Evolutions (0) 0 Regions Visited (2) 400 Robots Destroyed (10) 50 Value Destroyed (248) 248 Prototype IDs (0) 0 Alien Tech Used (0) 0 Bonus (0) 0 TOTAL SCORE: 698 Bonus ------- None Cogmind --------- Core Integrity 0/250 Matter 124/300 Energy 246/250 System Corruption 0% Temperature Cool (0) Movement Rolling (95) Ox1 Location -10/Subcaves Parts ------- > --- POWER (1) -------- Ion Engine > --- PROPULSION (2) --- Wheel Wheel > --- UTILITY (2) ------ Disposable Heat Sink Large Storage Unit > --- WEAPON (2) ------- Battle Rifle Battle Cannon > --- INVENTORY (15) --- Ion Engine Propulsion Shielding Subdweller Laser Peak State ------------ > --- POWER ------------ Ion Engine > --- PROPULSION ------- Subdweller Monowheel Subdweller Monowheel > --- UTILITY ---------- Disposable Heat Sink Large Storage Unit > --- WEAPON ----------- Beam Cannon Battle Rifle > --- INVENTORY -------- Ion Engine Ion Engine Wheel Wheel Propulsion Shielding [Rating: 11] Favorites ----------- Power Ion Engine Engine Ion Engine Propulsion Subdweller Monowheel Treads Light Treads Leg Aluminum Leg Wheel Subdweller Monowheel Utility Large Storage Unit Device Disposable Heat Sink Storage Large Storage Unit Weapon Assault Rifle Energy Gun Medium Laser Energy Cannon Beam Cannon Ballistic Gun Assault Rifle Ballistic Cannon Battle Cannon Build | -11 -10 -10 ------- Run | Yrd Mat Sub Slots Evolved . | . . . Power . | . . . Propulsion . | . . . Utility . | . . . Weapon . | . . . Parts Attached 15 | . 1 14 Power 1 | . . 1 Engine 1 | . . 1 Core . | . . . Reactor . | . . . Propulsion 8 | . . 8 Treads 3 | . . 3 Leg . | . . . Wheel 5 | . . 5 Hover . | . . . Flight . | . . . Utility 2 | . 1 1 Device 1 | . . 1 Storage 1 | . 1 . Processor . | . . . Hackware . | . . . Protection . | . . . Artifact . | . . . Weapon 4 | . . 4 Energy Gun 1 | . . 1 Energy Cannon 1 | . . 1 Ballistic Gun 1 | . . 1 Ballistic Cannon 1 | . . 1 Launcher . | . . . Special Weapon . | . . . Impact Weapon . | . . . Slashing Weapon . | . . . Piercing Weapon . | . . . Special Melee Weapon . | . . . Unidentified Prototypes . | . . . Parts Lost 5 | . . 5 Power 1 | . . 1 Propulsion 2 | . . 2 Utility . | . . . Weapon 2 | . . 2 Highest Loss Streak 3 | . . 3 To Critical Strikes . | . . . Average Slot Usage (%) 91 | . 86 93 Engine 14 | . 14 14 Treads 2 | . . 3 Leg 9 | . 28 1 Wheel 14 | . . 20 Device 7 | . . 11 Storage 14 | . 15 14 Energy Cannon 7 | . . 10 Ballistic Gun 18 | . 28 14 Ballistic Cannon 1 | . . 1 Peak Build Rating 11 | . 7 11 Average Rating 8 | . 6 9 On Entrance 6 | 6 6 7 Naked Turns . | . . . Heaviest Build 34 | 14 34 31 Greatest Support 40 | 20 20 40 Greatest Overweight (x) 10 | . 1 10 Average Overweight (x) . | . . . Largest Inventory Capacity 15 | . 15 15 Average Capacity 14 | . 13 15 Most Carried 10 | . 10 10 Average Carried 6 | . 8 5 Final Capacity 15 | 8 15 15 Final Carried 10 | 6 10 3 Class Distribution -------------------- 100% | Mutant Dominant Class ---------------- Mutant | -10/Materials Mutant | -10/Subcaves Resources | -11 -10 -10 ----------- Run | Yrd Mat Sub Matter Collected 635 | 200 . 435 Remotely . | . . . Salvage Created 369 | . 90 279 Parts 19 | . 9 10 Haulers Intercepted 1 | . 1 . Recyclers Shooed . | . . . Parts Field Recycled . | . . . Retrieved Matter . | . . . Parts Self-Destructed 7 | . . 7 Prevented . | . . . Kills | -11 -10 -10 ------- Run | Yrd Mat Sub Combat Hostiles Destroyed 8 | . 3 5 Guns 4 | . 3 1 Cannons 4 | . . 4 Classes Destroyed 5 | . 3 2 Hauler 1 | . 1 . Watcher 1 | . 1 . Swarmer 3 | . 3 . Artisan 1 | . . 1 Subdweller 5 | . . 5 Best Kill Streak 2 | . 2 1 Combat Bots Only 2 | . 2 1 Max Kills in Single Turn 1 | . 1 1 Gunslinging . | . . . Exploded . | . . . Melee . | . . . Uniques/NPCs Destroyed . | . . . Combat | -11 -10 -10 -------- Run | Yrd Mat Sub Hostile Shots Fired 86 | . 16 70 Missed 18 | . 4 14 Damage Taken 1259 | . 90 1169 Core 252 | . 33 219 Absorbed by Shields . | . . . Core Remaining (%) 100 | 100 . . Volleys Fired 115 | . 20 95 Largest 2 | . 2 2 Hottest 110 | . 40 110 Shots Fired 222 | . 40 182 Gun 145 | . 40 105 Cannon 77 | . . 77 Launcher . | . . . Special . | . . . Kinetic 152 | . 40 112 Thermal 70 | . . 70 Explosive . | . . . Electromagnetic . | . . . Robot Hit Streak 22 | . 4 22 Robot Miss Streak 4 | . 3 4 Penetration Max . | . . . Secondary Targets . | . . . Shots Hit Robots 78 | . 25 53 Core Hits 19 | . 6 13 Critical Kills . | . . . Critical Parts Destroyed 2 | . 2 . Critical Strikes 3 | . 2 1 Burn 1 | . . 1 Destroy 2 | . 2 . Melee Attacks . | . . . Impact . | . . . Slashing . | . . . Piercing . | . . . Sneak Attacks . | . . . Combat Hostiles . | . . . Follow-up Attacks . | . . . Damage Inflicted 969 | . 310 659 Guns 632 | . 310 322 Cannons 337 | . . 337 Explosions . | . . . Melee . | . . . Ramming . | . . . Kinetic 606 | . 310 296 Thermal 363 | . . 363 Explosive . | . . . Electromagnetic . | . . . Impact . | . . . Slashing . | . . . Piercing . | . . . Highest Corruption . | . . . Average Corruption . | . . . Corruption Purged . | . . . Corruption Blocked . | . . . Overload Shots . | . . . Overflow Damage . | . . . Projectiles . | . . . Explosions . | . . . Melee . | . . . Knockbacks . | . . . Impact . | . . . Kinetic . | . . . Secondary . | . . . Self-Inflicted Damage . | . . . Shots . | . . . Rammed . | . . . Targets Rammed . | . . . Kicked . | . . . Crushed . | . . . Highest Temperature 20 | . . 20 Average Temperature 4 | . . 4 Received Heat Transfer 222 | . . 222 Siege Activations . | . . . Robots Corrupted . | . . . Combat Hostiles . | . . . Parts Fried . | . . . Impact Corruptions . | . . . Robots Melted . | . . . Combat Hostiles . | . . . Parts Melted . | . . . Heat Transferred 925 | . . 925 Parts Sabotaged . | . . . Parts Stolen . | . . . Parts Stripped . | . . . Power Chain Reactions . | . . . Alert | -11 -10 -10 ------- Run | Yrd Mat Sub Peak Influence 70 | . 70 . Initial . | . . . Average 22 | . 22 . Maximum Alert Level . | . . . Low Security (%) 100 | . 100 . Level 1 . | . . . Level 2 . | . . . Level 3 . | . . . Level 4 . | . . . Level 5 . | . . . High Security . | . . . Max Security . | . . . Squads Dispatched . | . . . Investigation . | . . . Extermination . | . . . Reinforcement . | . . . Assault . | . . . Garrison . | . . . Intercept . | . . . Searches Triggered . | . . . Construction Impeded . | . . . Haulers Reinforced . | . . . Active Scanning Responses . | . . . Cargo Convoy Interrupts . | . . . Stealth | -11 -10 -10 --------- Run | Yrd Mat Sub Distress Signals . | . . . Communications Jammed . | . . . Distress Signals . | . . . Times Spotted 15 | . 4 11 Peak Tracking Total 4 | . 2 4 Tactical Retreats . | . . . Traps | -11 -10 -10 ------- Run | Yrd Mat Sub Traps Triggered . | . . . Indirectly . | . . . Trap Hack Attempts . | . . . Triggered . | . . . Disarmed . | . . . Reprogrammed . | . . . Reused . | . . . Traps Extracted . | . . . Installed . | . . . Triggered . | . . . Machines | -11 -10 -10 ---------- Run | Yrd Mat Sub Machines Disabled . | . . . Max in Single Turn . | . . . Machines Repaired . | . . . Machines Dismantled . | . . . Machines Sabotaged . | . . . Overloaded Fab Kills . | . . . Hacking | -11 -10 -10 --------- Run | Yrd Mat Sub Machines Accessed 2 | . . 2 Terminals . | . . . Fabricators . | . . . Repair Stations . | . . . Recycling Units . | . . . Scanalyzers . | . . . Garrison Access . | . . . Total Hacks 6 | . . 6 Successful 6 | . . 6 Failed . | . . . Catastrophic . | . . . Database Lockouts . | . . . Manual . | . . . Terminals . | . . . Fabricators . | . . . Repair Stations . | . . . Recycling Units . | . . . Scanalyzers . | . . . Garrison Access . | . . . Terminal Hacks 6 | . . 6 Record 5 | . . 5 Open Door 1 | . . 1 Fabricator Hacks . | . . . Repair Station Hacks . | . . . Recycling Unit Hacks . | . . . Scanalyzer . | . . . Garrison Access Hacks . | . . . Unauthorized Hacks . | . . . Terminals . | . . . Fabricators . | . . . Repair Stations . | . . . Recycling Units . | . . . Scanalyzers . | . . . Garrison Access . | . . . Data Cores Recovered . | . . . Used . | . . . Hacking Detections . | . . . Full Trace Events . | . . . Feedback Events . | . . . Feedback Blocked . | . . . Robot Schematics Acquired . | . . . Robots Built . | . . . Authchips . | . . . Time . | . . . Total Robot Build Rating . | . . . Part Schematics Acquired . | . . . Parts Built . | . . . Authchips . | . . . Time . | . . . Total Part Build Rating . | . . . Parts Repaired . | . . . Time . | . . . Parts Recycled . | . . . Recycled Matter . | . . . Retrieved Matter . | . . . Retrieved Components . | . . . Parts Scanalyzed . | . . . Part Schematics Acquired . | . . . Parts Damaged . | . . . Bothacking | -11 -10 -10 ------------ Run | Yrd Mat Sub Used RIF Installer . | . . . Robots Hacked . | . . . Non-combat . | . . . Combat . | . . . Robot Hacks Applied . | . . . Relay Couplers Released . | . . . Fabnet Peak Effective % . | . . . Robots Rewired . | . . . Allies Hacked . | . . . Hacks Repelled . | . . . Allies | -11 -10 -10 -------- Run | Yrd Mat Sub Total Allies . | . . . Largest Group . | . . . Highest-Rated Group . | . . . Highest-Rated Ally . | . . . Total Orders . | . . . Ally Attacks . | . . . Total Damage . | . . . Kills . | . . . Allies Corrupted . | . . . Allies Melted . | . . . Intel | -11 -10 -10 ------- Run | Yrd Mat Sub Robot Analysis Total . | . . . Derelict Logs Recovered 1 | . . 1 Drone Launches . | . . . Drone Recoveries . | . . . Exploration | -11 -10 -10 ------------- Run | Yrd Mat Sub Turns Passed 1789 | . 556 1233 Spaces Moved 960 | 1 186 773 Core 3 | . . 3 Treads 57 | . . 57 Legs 209 | 1 186 22 Wheels 691 | . . 691 Hover . | . . . Flight . | . . . Fastest Speed 95 | 120 120 95 Average Speed 125 | 120 154 118 Slowest Speed 550 | 120 190 550 Overloaded Moves . | . . . Propulsion Burnouts . | . . . Robots Hopped . | . . . Cave-ins Triggered . | . . . Exploration Rate (%) 25 | 2 36 37 Regions Visited 2 Branch Regions 1 Pre-discovered Areas 1 | . . 1 Known Exits Taken . | . . . Unknown Exits Taken 2 | 1 1 . Scrap Searched . | . . . Spaces Dug . | . . . Terrain Destroyed . | . . . Melee . | . . . Projectile . | . . . AOE . | . . . Terrain Rammed . | . . . Walls Destroyed . | . . . Machines Disabled . | . . . Actions | -11 -10 -10 --------- Run | Yrd Mat Sub Total 1336 | . 416 920 Wait 233 | . 202 31 Move 958 | . 185 773 Hop . | . . . Pick Up 6 | . 5 1 Fast Attach 4 | . 1 3 Attach 8 | . . 8 Detach 1 | . 1 . Swap 3 | . . 3 Drop 8 | . 2 6 Fire 115 | . 20 95 Melee . | . . . Ram . | . . . Kick . | . . . Crush . | . . . Escape Stasis . | . . . Rewire . | . . . Trap . | . . . Miscellaneous . | . . . Route ------- -11/Scrapyard -10/Materials -10/Subcaves (discovered 3 exits: [*Mat x2] / Rec) History --------- Turn | Location | Event 1 | -11/Scrapyard | Discovered new exit (range 0) 1 | -11/Scrapyard | Entered Materials 316 | -10/Materials | Build established: Mutant 536 | -10/Materials | Discovered new exit (range 5) 557 | -10/Materials | Entered Subcaves 567 | -10/Subcaves | Learned location of Storage (-9) 653 | -10/Subcaves | Discovered new exit (range 6) 738 | -10/Subcaves | Lost 3 parts (1n2w) 844 | -10/Subcaves | Shifting Twisted Machinery released Sub. Laser 846 | -10/Subcaves | Shifting Twisted Machinery released Piercing Trap 1096 | -10/Subcaves | Ambushed by angry Subdweller bent on revenge 1100 | -10/Subcaves | Core integrity fell below 50% 1455 | -10/Subcaves | Discovered new exit (range 5) 1459 | -10/Subcaves | Visited Clippyterm 1462 | -10/Subcaves | Identified exit to Recycling 1462 | -10/Subcaves | Learned Research security intel 1789 | -10/Subcaves | Core integrity fell below 20% 1790 | -10/Subcaves | Destroyed by 2T-0PJ(R) with Subdweller Shrapnel Launcher Last Messages --------------- >>Record "Early Bird" It looks like you're searching for a worm, right? Don't bother with early when it comes to the Lifeworm, it's never early, but by some measures it might be just in time... 01465_ Connecting with Clippyterm... 01502_ Connecting with UFD SUBCON Station... >>Open Door Sealed Heavy Doors opened. 01588_ Subatomizers dissect the Sub. Laser. 01612_ Sub. Monowheel shoots sparks and powers down. 01614_ Dropped Broken Sub. Monowheel. 01617_ Subatomizers dissect the Sub. Laser. 01633_ Dropped Sub. Monowheel. 01633_ Dropped Beam Cannon. 01634_ Acquired Battle Cannon. 01636_ Acquired Sub. Laser. 01638_ Subatomizers dissect the Disposable Heat Sink. Map ----- +----------------------------------------------------+ | ???????????????# ["######??????# ###?? | | ???????????????#" "" # ##????? ### | | ???????????????# &""" ""###### | | ???????????????#" ""## ## | | ???????????????#"" ###" #?? | | ???????????????# ""#?#"" #?? | | ???????????????# ""#?#" # ##?? | | ???????????????##"##?#### ###??? | | ????????????????###???## ###### | | ??????????????????????# | | ?????????????????????## | | ????????????????????##" # | | ???????????????????##" ######## | | ??????????????????##" ##### #????? | | ?????????????????## ##???? #????? | | ??????#####???#### ##????? #???? | | ?????##< #